Cogmind - Beta 17.1 @@@ ROGUE MODE // 2026.09.21 @ 04:01:13 Player: KURIIRI Result: Destroyed by G-67 Veteran with Field Laser Performance ------------- Evolutions (4) 2000 Regions Visited (9) 1800 Robots Destroyed (139) 695 Value Destroyed (4593) 4593 Prototype IDs (19) 380 Alien Tech Used (0) 0 Bonus (872) 872 TOTAL SCORE: 10340 Bonus ------- High Alert Combat Kills 72 Registered with UFD 300 Met Optimus in HQ 500 Cogmind --------- Core Integrity 0/850 Matter 300/300 Energy 100/100 System Corruption 3% Temperature Cool (9) Movement Core (50) Location -6/Lower Caves Parts ------- > --- POWER (1) -------- (None) > --- PROPULSION (4) --- (None) > --- UTILITY (8) ------ Advanced Visual Processing Unit Advanced Signal Interpreter Hacking Suite > --- WEAPON (2) ------- (None) > --- INVENTORY (5) ---- Tri-rail Accelerator Missile Launcher Multitool Impact Mace Peak State ------------ > --- POWER ------------ Meta Core > --- PROPULSION ------- Maxwheels > --- UTILITY ---------- Huge Storage Unit Advanced Signal Interpreter Hacking Suite Makeshift Hacking Suite Improved Hacking Suite Improved Hacking Suite Makeshift System Shield Improved System Shield Improved System Shield > --- WEAPON ----------- Coil Gun Coil Gun Heavy Machine Gun Heavy Machine Gun > --- INVENTORY -------- Improved Deuterium Engine Compact Wheel Gravmag System Gravmag System Large Storage Unit Matter Compressor Advanced Sensor Array Advanced Sensor Array Advanced Sensor Array Advanced Signal Interpreter Advanced Terrain Scanner Weapon Cycler Light Armor Plating Improved System Restoration Module Heavy Plasma Cannon Heavy Machine Gun Magnetic Acceleration Cannon Rocket Launcher Missile Launcher Missile Launcher Multitool Makeshift Axe [Rating: 110] Favorites ----------- Power Ion Engine Engine Ion Engine Power Core Meta Core Propulsion Light Treads Treads Light Treads Leg Aluminum Leg Wheel Compact Wheel Hover Unit Linear Gravjet Utility Hacking Suite Device Advanced Sensor Array Storage Humpback Processor Advanced Signal Interpreter Hackware Hacking Suite Protection Scrap Shield Weapon Subdweller Beam Cannon Energy Gun EM Pulse Gun Energy Cannon Subdweller Beam Cannon Ballistic Gun Heavy Machine Gun Ballistic Cannon Tri-rail Accelerator Launcher Subdweller Shrapnel Launcher Special Weapon Multitool Impact Weapon Impact Mace Slashing Weapon Makeshift Axe Build | -11 -10 -10 -9 -9 -6 -6 -6 -6 -6 ------- Run | Yrd Mat Sub Rec Scr Fac Was Fac Low Low Slots Evolved 8 | . . . . . 8 . . . . Power . | . . . . . . . . . . Propulsion 2 | . . . . . 2 . . . . Utility 6 | . . . . . 6 . . . . Weapon . | . . . . . . . . . . Parts Attached 93 | 3 3 13 4 3 49 . 17 1 . Power 4 | . . . . 1 3 . . . . Engine 3 | . . . . 1 2 . . . . Core 1 | . . . . . 1 . . . . Reactor . | . . . . . . . . . . Propulsion 21 | 2 . 3 4 . 10 . 2 . . Treads 4 | 2 . 1 1 . . . . . . Leg . | . . . . . . . . . . Wheel 6 | . . 2 3 . 1 . . . . Hover 11 | . . . . . 9 . 2 . . Flight . | . . . . . . . . . . Utility 41 | 1 1 3 . 2 22 . 11 1 . Device 11 | 1 . . . . 6 . 4 . . Storage 4 | . 1 1 . 1 . . 1 . . Processor 4 | . . . . . 3 . 1 . . Hackware 14 | . . . . 1 10 . 3 . . Protection 8 | . . 2 . . 3 . 2 1 . Artifact . | . . . . . . . . . . Weapon 27 | . 2 7 . . 14 . 4 . . Energy Gun 3 | . 1 . . . 1 . 1 . . Energy Cannon 5 | . . 4 . . 1 . . . . Ballistic Gun 11 | . 1 1 . . 9 . . . . Ballistic Cannon 1 | . . . . . . . 1 . . Launcher 4 | . . 1 . . 2 . 1 . . Special Weapon 1 | . . . . . 1 . . . . Impact Weapon 1 | . . . . . . . 1 . . Slashing Weapon 1 | . . 1 . . . . . . . Piercing Weapon . | . . . . . . . . . . Special Melee Weapon . | . . . . . . . . . . Unidentified Prototypes 3 | . . . . . . . 2 1 . Corrupted Parts 1 | . . . . 1 . . . . . System Corruption 1 | . . . . 1 . . . . . Parts Lost 34 | . . 1 3 . 16 . 8 3 3 Power 1 | . . . . . 1 . . . . Propulsion 13 | . . 1 2 . 3 . 2 3 2 Utility 12 | . . . . . 6 . 5 . 1 Weapon 8 | . . . 1 . 6 . 1 . . Highest Loss Streak 9 | . . 1 3 . 9 . 2 3 1 To Critical Strikes . | . . . . . . . . . . Average Backups 14 | 5 8 7 23 25 20 5 5 7 3 Power . | 1 1 . 2 1 1 . . . . Propulsion 2 | 3 2 1 4 4 2 . . . . Utility 6 | . 2 2 9 11 9 3 2 3 1 Weapon 3 | 1 2 1 5 5 5 1 2 3 2 Tool/Special . | . . . . . . . . . . Unused Backups 30 | . . 6 2 5 14 . . 2 1 Power 4 | . . . . 1 3 . . . . Propulsion . | . . . . . . . . . . Utility 18 | . . 2 2 2 10 . . 2 . Weapon 8 | . . 4 . 2 1 . . . 1 Tool/Special . | . . . . . . . . . . Average Slot Usage (%) 81 | . 100 85 81 73 77 94 93 63 39 Engine 10 | . 14 14 14 14 3 . . . . Core 1 | . . . . . 1 5 5 6 4 Treads 8 | . 28 22 . . . . . . . Wheel 10 | . . 5 27 28 4 . . . . Hover 4 | . . . . . 3 29 29 15 3 Device 2 | . 14 . . . 2 5 6 7 5 Storage 7 | . 14 4 14 14 4 . 2 6 . Processor 2 | . . . . . 5 5 8 12 13 Hackware 8 | . . . . 2 27 41 27 6 6 Protection 4 | . . 9 . . 2 . 3 1 . Energy Cannon 9 | . . 20 20 . . 5 2 . . Ballistic Gun 3 | . 16 . . . 14 . . . . Slashing Weapon 4 | . . 4 4 14 1 . . . . Peak Build Rating 110 | 7 8 17 20 21 110 87 90 85 48 Average Rating 36 | 6 7 13 18 18 87 87 84 51 32 On Entrance 38 | 6 7 8 17 19 21 87 87 85 48 Avg Prop Armor Cover (%) 7 | . . 11 5 . 5 5 7 . . Naked Turns . | . . . . . . . . . . Heaviest Build 221 | 15 30 221 221 208 130 17 42 42 20 Greatest Support 47 | 40 40 40 36 32 47 36 47 47 20 Greatest Overweight (x) 13 | . . 13 13 6 5 . . 1 3 Average Overweight (x) 2 | . . 1 8 4 2 . . . . Largest Inventory Capacity 35 | 8 15 35 35 35 25 5 10 10 10 Average Capacity 19 | 8 13 12 35 32 22 5 7 10 5 Most Carried 34 | 6 11 24 32 34 25 5 10 10 8 Average Carried 16 | 5 8 8 28 29 20 5 5 8 4 Final Capacity 35 | 8 15 35 35 25 5 5 10 10 5 Final Carried 32 | 4 11 24 32 25 5 5 9 8 5 Class Distribution -------------------- 32% | Hauler-Mutant 24% | Mutant 10% | Subdweller-Mutant 6% | Hacker-Tank 5% | Wizard-Sprinter 4% | Scout 3% | Hacker-Scout 3% | Wizard-Mutant Dominant Class ---------------- Mutant | -10/Materials Mutant | -10/Subcaves Hauler-Mutant | -9/Recycling Hauler-Mutant | -9/Scraptown Hacker-Tank | -6/Factory Wizard-Sprinter | -6/Waste Wizard-Sprinter | -6/Factory Scout | -6/Lower Caves Scout | -6/Lower Caves Resources | -11 -10 -10 -9 -9 -6 -6 -6 -6 -6 ----------- Run | Yrd Mat Sub Rec Scr Fac Was Fac Low Low Matter Collected 4037 | 242 358 358 70 10 2053 . 768 140 38 Remotely . | . . . . . . . . . . Salvage Created 5272 | 81 550 834 386 . 2523 . 839 59 . Parts 289 | 6 30 56 20 . 138 . 32 7 . Haulers Intercepted 3 | . 1 . . . 2 . . . . Recyclers Shooed 6 | . 1 . . . 3 . 2 . . Parts Field Recycled . | . . . . . . . . . . Retrieved Matter . | . . . . . . . . . . Parts Self-Destructed 13 | . . 4 . . . . . 7 2 Prevented . | . . . . . . . . . . Parts Restored . | . . . . . . . . . . Kills | -11 -10 -10 -9 -9 -6 -6 -6 -6 -6 ------- Run | Yrd Mat Sub Rec Scr Fac Was Fac Low Low Combat Hostiles Destroyed 97 | . 8 24 7 . 41 . 13 4 . Melee 11 | . . 6 2 . 3 . . . . Guns 33 | . 8 1 . . 24 . . . . Cannons 28 | . . 13 4 . 4 . 6 1 . AOE 23 | . . 4 . . 9 . 7 3 . Classes Destroyed 18 | 2 5 5 2 . 3 . . 1 . Worker 13 | . 1 . . . 3 . 9 . . Builder 6 | . . . . . 5 . 1 . . Tunneler 3 | 1 . . . . 2 . . . . Hauler 3 | . 1 . . . 2 . . . . Recycler 8 | 1 1 . . . 3 . 3 . . Operator 2 | . 1 . . . 1 . . . . Turret 2 | . . 2 . . . . . . . Watcher 5 | . 2 . . . 1 . 2 . . Swarmer 24 | . . 4 . . 10 . 6 4 . Grunt 34 | . 8 . 1 . 19 . 6 . . Duelist 2 | . . . 2 . . . . . . Sentry 6 | . . 1 3 . 2 . . . . Specialist 2 | . . . . . 2 . . . . Hunter 4 | . . . . . 4 . . . . Programmer 6 | . . . 1 . 4 . 1 . . Artisan 1 | . . 1 . . . . . . . Subdweller 19 | . . 19 . . . . . . . Samaritan 1 | . . . . . . . . 1 . Best Kill Streak 7 | 2 5 6 3 . 7 . 7 4 . Combat Bots Only 6 | . 4 4 3 . 6 . 6 4 . Max Kills in Single Turn 5 | 1 2 2 1 . 5 . 3 2 . Gunslinging . | . . . . . . . . . . Exploded 3 | . . 2 . . 3 . 2 2 . Melee 1 | . . 1 1 . 1 . . . . Uniques/NPCs Destroyed . | . . . . . . . . . . Combat | -11 -10 -10 -9 -9 -6 -6 -6 -6 -6 -------- Run | Yrd Mat Sub Rec Scr Fac Was Fac Low Low Hostile Shots Fired 584 | . 36 77 29 . 318 . 76 27 21 Missed 183 | . 6 24 7 . 86 . 39 9 12 Hits 401 | . 30 53 22 . 232 . 37 18 9 Melee 9 | . . . 9 . . . . . . Projectile 392 | . 30 53 13 . 232 . 37 18 9 AOE 3 | . . 3 . . . . . . . Critical Strikes 13 | . 1 1 6 . 2 . 1 1 1 Part Disruptions 1 | . . . 1 . . . . . . Damage Taken 7036 | . 359 1122 451 . 3675 . 878 376 175 Core 1089 | . 87 43 99 . 568 . 191 . 101 Absorbed by Shields . | . . . . . . . . . . Regen/Repaired (Parts) 152 | . . . . . . . 152 . . Core Remaining (%) 54 | 100 . . . 8 . . . . . Volleys Fired 368 | 4 50 53 17 . 131 . 109 4 . Largest 4 | 2 2 2 2 . 4 . 1 1 . Hottest 160 | 60 60 160 160 . 120 . 90 60 . Shots Fired 668 | 8 91 74 34 . 348 . 109 4 . Gun 410 | 8 91 4 . . 307 . . . . Cannon 233 | . . 65 34 . 30 . 103 1 . Launcher 25 | . . 5 . . 11 . 6 3 . Special . | . . . . . . . . . . Kinetic 432 | 4 66 9 . . 299 . 53 1 . Thermal 179 | . . 65 34 . 30 . 50 . . Explosive 20 | . . . . . 11 . 6 3 . Electromagnetic 37 | 4 25 . . . 8 . . . . Robot Hit Streak 22 | 3 12 22 14 . 11 . 8 4 . Robot Miss Streak 7 | 1 6 2 5 . 6 . 7 . . Penetration Max 2 | . . . . . 2 . . . . Secondary Targets 6 | . . . . . 6 . . . . Max Gunslinging Chain 1 | . . . . . 1 . . . . Shots Hit Robots 410 | 5 62 61 30 . 213 . 37 2 . Core Hits 208 | 2 25 31 7 . 107 . 31 5 . Critical Kills 4 | . . . 1 . 3 . . . . Critical Parts Destroyed 4 | . 1 . . . 3 . . . . Critical Strikes 9 | . 1 1 1 . 6 . . . . Meltdown 2 | . . . 1 . 1 . . . . Destroy 6 | . 1 . . . 5 . . . . Sever 1 | . . 1 . . . . . . . Melee Attacks 116 | . . 63 12 . 30 . 5 6 . Impact 11 | . . . . . . . 5 6 . Slashing 105 | . . 63 12 . 30 . . . . Piercing . | . . . . . . . . . . Sneak Attacks 7 | . . . . . 2 . 4 1 . Combat Hostiles . | . . . . . . . . . . Follow-up Attacks . | . . . . . . . . . . Damage Inflicted 14068 | 100 836 2263 958 . 6631 . 2845 435 . Guns 5270 | 54 803 56 . . 4357 . . . . Cannons 4068 | . . 1207 674 . 840 . 1325 22 . Explosions 2990 | 46 31 479 . . 1063 . 1086 285 . Melee 1702 | . . 520 284 . 371 . 399 128 . Ramming 38 | . 2 1 . . . . 35 . . Kinetic 6421 | 28 521 535 . . 4289 . 1026 22 . Thermal 3643 | 46 31 1207 674 . 840 . 845 . . Explosive 1888 | . . . . . 1063 . 540 285 . Electromagnetic 376 | 26 282 . . . 68 . . . . Impact 527 | . . . . . . . 399 128 . Slashing 1175 | . . 520 284 . 371 . . . . Piercing . | . . . . . . . . . . Highest Corruption 8 | . . . . 1 1 8 8 3 3 Average Corruption 1 | . . . . 1 1 3 2 3 3 Corruption Purged 7 | . . . . . . . 7 . . Corruption Blocked . | . . . . . . . . . . Effects 35 | . . . . . 7 1 18 8 1 Message Errors 12 | . . . . . 2 . 6 3 1 Matter Fused 8 | . . . . . 3 . 3 2 . Heat Flow Errors 6 | . . . . . 1 . 3 2 . Energy Discharges 2 | . . . . . . . 2 . . Parts Fused 1 | . . . . . . . . 1 . Data Loss (minor) 3 | . . . . . . . 3 . . Data Loss (major) 2 | . . . . . . 1 1 . . Misfires 1 | . . . . . 1 . . . . Overload Shots . | . . . . . . . . . . Overflow Damage 832 | . . 13 51 . 195 . 445 128 . Projectiles 63 | . . . 17 . 31 . 15 . . Explosions 376 | . . 13 . . 134 . 223 6 . Melee 393 | . . . 34 . 30 . 207 122 . Knockbacks 6 | . . . . . . . 6 . . Impact 2 | . . . . . . . 2 . . Kinetic 4 | . . . . . . . 4 . . Secondary . | . . . . . . . . . . Self-Inflicted Damage 309 | . . 19 . . 65 . 215 10 . Shots 7 | . . 1 . . 2 . 3 1 . Rammed 4 | . 1 1 . . . . 2 . . Targets Rammed 4 | . 1 1 . . . . 2 . . Kicked . | . . . . . . . . . . Crushed . | . . . . . . . . . . Highest Temperature 495 | 20 48 297 495 . 417 88 319 241 15 Average Temperature 102 | 20 25 84 198 . 120 50 76 101 15 Received Heat Transfer 1792 | . 225 441 45 . 756 . 189 36 100 Effects 10 | . . . 5 . 3 . 2 . . Shutdowns 3 | . . . 3 . . . . . . Energy Bleed 1 | . . . . . 1 . . . . Interference 3 | . . . 1 . . . 2 . . Matter Decay 1 | . . . . . 1 . . . . Damage (minor) 2 | . . . 1 . 1 . . . . Siege Activations . | . . . . . . . . . . Martial Activations . | . . . . . . . . . . Shielding Activations . | . . . . . . . . . . Robots Disrupted . | . . . . . . . . . . Combat Hostiles . | . . . . . . . . . . Robots Corrupted 3 | . . . . . . . 2 1 . Combat Hostiles . | . . . . . . . . . . Parts Fried 5 | . . . . . . . 4 1 . Impact Corruptions 11 | . . . . . . . 5 6 . Robots Melted 2 | . . . 1 . 1 . . . . Combat Hostiles 2 | . . . 1 . 1 . . . . Parts Melted 18 | 1 . 6 5 . 5 . 1 . . Heat Transferred 4714 | 50 100 1591 823 . 1300 . 850 . . Parts Sabotaged . | . . . . . . . . . . Parts Stolen . | . . . . . . . . . . Parts Stripped . | . . . . . . . . . . Power Chain Reactions 3 | 1 1 . . . . . 1 . . Alert | -11 -10 -10 -9 -9 -6 -6 -6 -6 -6 ------- Run | Yrd Mat Sub Rec Scr Fac Was Fac Low Low Maximum Alert Level 3 | . . . . . 1 . 3 . . Low Security (%) 72 | 100 100 . 100 . 76 100 26 . . Level 1 14 | . . . . . 23 . 20 . . Level 2 11 | . . . . . . . 50 . . Level 3 . | . . . . . . . 2 . . Level 4 . | . . . . . . . . . . Level 5 . | . . . . . . . . . . High Security . | . . . . . . . . . . Max Security . | . . . . . . . . . . Peak Influence 703 | 10 172 . 54 . 289 97 703 . . Initial 97 | . . . . . . 97 60 . . Average 155 | 3 59 . 9 . 124 94 398 . . Influence Increases 3468 | 10 311 170 275 . 1338 . 1154 120 90 Destroy 0b10 Robot/C 1600 | . 160 140 140 . 820 . 260 80 . Destroy 0b10 Robot/NC 205 | 10 30 . 5 . 85 . 75 . . Destroy Leader 256 | . 36 . . . 166 . 44 10 . Successful Hack 31 | . 6 . . . 8 . 17 . . Select Force Hacks 230 | . 60 . 120 . . . 50 . . Disable Machine 240 | . 15 . . . 120 . 105 . . Destroy Structure 261 | . 4 . 10 . 64 . 183 . . Partial Spotted 15 | . . . . . . . 15 . . Lose Combat Pursuer 630 | . . 30 . . 75 . 405 30 90 Influence Decreases 3205 | 10 155 324 277 . 1059 192 578 482 128 Entered New Map 591 | . . 76 2 . . 182 27 246 58 Time Decay 1977 | 10 155 248 258 . 589 10 461 206 40 Lost Part 317 | . . . 17 . 160 . 80 30 30 Lost Ally 20 | . . . . . 10 . 10 . . Purge Threat 300 | . . . . . 300 . . . . Squads Dispatched 41 | . 3 . . . 20 . 18 . . Investigation 26 | . 3 . . . 12 . 11 . . Extermination 8 | . . . . . 4 . 4 . . Reinforcement 6 | . . . . . 4 . 2 . . Assault . | . . . . . . . . . . Garrison 1 | . . . . . . . 1 . . Intercept . | . . . . . . . . . . Searches Triggered . | . . . . . . . . . . Construction Impeded 3 | . . . . . 2 . 1 . . Haulers Reinforced 1 | . . . . . 1 . . . . Active Scanning Responses . | . . . . . . . . . . Cargo Convoy Interrupts . | . . . . . . . . . . Stealth | -11 -10 -10 -9 -9 -6 -6 -6 -6 -6 --------- Run | Yrd Mat Sub Rec Scr Fac Was Fac Low Low Distress Signals 4 | . 2 . . . 1 . 1 . . Communications Jammed . | . . . . . . . . . . Distress Signals . | . . . . . . . . . . Times Spotted 171 | . 14 26 7 . 53 6 50 6 9 Peak Tracking Total 10 | . 7 3 2 . 7 6 10 5 3 Tactical Retreats 24 | . . 1 . . 4 . 15 2 2 Traps | -11 -10 -10 -9 -9 -6 -6 -6 -6 -6 ------- Run | Yrd Mat Sub Rec Scr Fac Was Fac Low Low Traps Triggered 5 | . . . . . 3 . 2 . . Indirectly . | . . . . . . . . . . Trap Hack Attempts . | . . . . . . . . . . Triggered . | . . . . . . . . . . Disarmed . | . . . . . . . . . . Reprogrammed . | . . . . . . . . . . Reused . | . . . . . . . . . . Traps Extracted . | . . . . . . . . . . Installed . | . . . . . . . . . . Triggered . | . . . . . . . . . . Machines | -11 -10 -10 -9 -9 -6 -6 -6 -6 -6 ---------- Run | Yrd Mat Sub Rec Scr Fac Was Fac Low Low Machines Disabled 20 | . 1 4 . . 8 . 7 . . Max in Single Turn 3 | . 1 2 . . 2 . 3 . . Garrison Access 3 | . . . . . 1 . 2 . . Machines Repaired . | . . . . . . . . . . Machines Dismantled . | . . . . . . . . . . Machines Sabotaged . | . . . . . . . . . . Overloaded Fab Kills 4 | . . . . . . . 4 . . Hacking | -11 -10 -10 -9 -9 -6 -6 -6 -6 -6 --------- Run | Yrd Mat Sub Rec Scr Fac Was Fac Low Low Machines Accessed 48 | . 3 1 5 . 23 . 16 . . Terminals 21 | . 1 . 1 . 12 . 7 . . Fabricators 8 | . . . . . 5 . 3 . . Repair Stations 3 | . . . . . . . 3 . . Recycling Units 11 | . 2 . 4 . 4 . 1 . . Scanalyzers 1 | . . . . . 1 . . . . Garrison Access 3 | . . . . . 1 . 2 . . Total Hacks 111 | . 6 1 10 . 60 . 34 . . Successful 81 | . 3 1 4 . 48 . 25 . . Failed 27 | . 2 . 6 . 11 . 8 . . Catastrophic 5 | . 1 . . . 3 . 1 . . Database Lockouts 3 | . 1 . . . 1 . 1 . . Manual 67 | . 7 . 7 . 33 . 20 . . Terminals 53 | . 3 . 3 . 30 . 17 . . Fabricators 29 | . . . . . 19 . 10 . . Repair Stations 3 | . . . . . . . 3 . . Recycling Units 16 | . 3 . 7 . 5 . 1 . . Scanalyzers 5 | . . . . . 5 . . . . Garrison Access 4 | . . . . . 1 . 3 . . Terminal Hacks 25 | . 1 1 . . 15 . 8 . . Part Schematic 6 | . . . . . 3 . 3 . . Robot Analysis 1 | . 1 . . . . . . . . Branch Access Points 1 | . . . . . . . 1 . . Terminal Index 2 | . . . . . 1 . 1 . . Alert Level 2 | . . . . . 2 . . . . Unreport Threat 2 | . . . . . 2 . . . . Locate Traps 1 | . . . . . 1 . . . . Recall Extermination 1 | . . . . . . . 1 . . Recall Reinforcements 1 | . . . . . 1 . . . . Registered Components 2 | . . . . . 1 . 1 . . Registered Prototypes 1 | . . . . . 1 . . . . Zone Layout 4 | . . . . . 3 . 1 . . Proto ID Catalog 1 | . . 1 . . . . . . . Fabricator Hacks 18 | . . . . . 13 . 5 . . Network Status 2 | . . . . . 1 . 1 . . Load Schematic 9 | . . . . . 6 . 3 . . Build 7 | . . . . . 6 . 1 . . Repair Station Hacks . | . . . . . . . . . . Recycling Unit Hacks . | . . . . . . . . . . Scanalyzer 5 | . . . . . 5 . . . . Insert Component 2 | . . . . . 2 . . . . Analyze 2 | . . . . . 2 . . . . Retrieve Study 1 | . . . . . 1 . . . . Garrison Access Hacks 3 | . . . . . 1 . 2 . . Seal Access 3 | . . . . . 1 . 2 . . Unauthorized Hacks 30 | . 2 . 4 . 14 . 10 . . Terminals 8 | . . . . . 5 . 3 . . Track 1 | . . . . . . . 1 . . Assimilate 1 | . . . . . . . 1 . . Botnet 4 | . . . . . 3 . 1 . . Operators 2 | . . . . . 2 . . . . Fabricators 8 | . . . . . 5 . 3 . . Prioritize 5 | . . . . . 4 . 1 . . Overload 1 | . . . . . . . 1 . . Recompile 2 | . . . . . 1 . 1 . . Repair Stations 3 | . . . . . . . 3 . . Patch 3 | . . . . . . . 3 . . Recycling Units 11 | . 2 . 4 . 4 . 1 . . Tunnel 6 | . 2 . 4 . . . . . . Fedlink 5 | . . . . . 4 . 1 . . Scanalyzers . | . . . . . . . . . . Garrison Access . | . . . . . . . . . . Data Cores Recovered 2 | . 1 . . . 1 . . . . Used . | . . . . . . . . . . Hacking Detections 23 | . 3 . 2 . 13 . 5 . . Full Trace Events 13 | . 1 . 1 . 7 . 4 . . Feedback Events 3 | . . . . . . . 3 . . Hackware Fried 3 | . . . . . . . 3 . . Feedback Blocked 1 | . . . . . . . 1 . . Robot Schematics Acquired . | . . . . . . . . . . Robots Built 1 | . . . . . 1 . . . . Authchips . | . . . . . . . . . . Time 58 | . . . . . 58 . . . . Total Robot Build Rating 3 | . . . . . 3 . . . . Part Schematics Acquired 8 | . . . . . 5 . 3 . . Parts Built 8 | . . . . . 7 . 1 . . Authchips 2 | . . . . . 1 . 1 . . Time 191 | . . . . . 163 . 28 . . Total Part Build Rating 45 | . . . . . 39 . 6 . . Part Studies Acquired 1 | . . . . . 1 . . . . Parts Repaired . | . . . . . . . . . . Time . | . . . . . . . . . . Parts Recycled . | . . . . . . . . . . Recycled Matter . | . . . . . . . . . . Retrieved Matter . | . . . . . . . . . . Retrieved Components . | . . . . . . . . . . Parts Scanalyzed 2 | . . . . . 2 . . . . Part Schematics Acquired 2 | . . . . . 2 . . . . Parts Damaged . | . . . . . . . . . . Bothacking | -11 -10 -10 -9 -9 -6 -6 -6 -6 -6 ------------ Run | Yrd Mat Sub Rec Scr Fac Was Fac Low Low Used RIF Installer . | . . . . . . . . . . Robots Hacked . | . . . . . . . . . . Non-combat . | . . . . . . . . . . Combat . | . . . . . . . . . . Robot Hacks Applied . | . . . . . . . . . . Relay Couplers Released . | . . . . . . . . . . Fabnet Peak Effective % . | . . . . . . . . . . Robots Rewired 1 | . . . 1 . . . . . . Allies Hacked . | . . . . . . . . . . Hacks Repelled . | . . . . . . . . . . Allies | -11 -10 -10 -9 -9 -6 -6 -6 -6 -6 -------- Run | Yrd Mat Sub Rec Scr Fac Was Fac Low Low Total Allies 3 | . . . 1 . 1 . 1 . . Largest Group 1 | . . . 1 . 1 . 1 . . Highest-Rated Group 27 | . . . 27 . 26 . 26 . . Highest-Rated Ally 27 | . . . 27 . 26 . 26 . . Initial UFD Resources 42 | . . . . . 22 40 40 42 42 Total Orders 2 | . . . . . 2 . . . . STAY 1 | . . . . . 1 . . . . FOLLOW 1 | . . . . . 1 . . . . Ally Attacks . | . . . . . . . . . . Total Damage . | . . . . . . . . . . Kills . | . . . . . . . . . . Allies Corrupted . | . . . . . . . . . . Allies Melted . | . . . . . . . . . . Intel | -11 -10 -10 -9 -9 -6 -6 -6 -6 -6 ------- Run | Yrd Mat Sub Rec Scr Fac Was Fac Low Low Active Infowar (turns) 3723 | 19 542 269 . . 1033 25 1327 421 87 Optics 1169 | . . . . . . . 661 421 87 Sensors 2845 | . . . . . 1032 25 1288 421 79 Terrain 60 | . . . . . 60 . . . . Structural 1 | . . . . . 1 . . . . Seismic 830 | 19 542 269 . . . . . . . Jamming 44 | . . . . . 44 . . . . Robot Analysis Total 1 | . 1 . . . . . . . . Derelict Logs Recovered 10 | . . 2 . 5 . . . 3 . Drone Launches . | . . . . . . . . . . Drone Recoveries . | . . . . . . . . . . Exploration | -11 -10 -10 -9 -9 -6 -6 -6 -6 -6 ------------- Run | Yrd Mat Sub Rec Scr Fac Was Fac Low Low Turns Passed 13602 | 42 542 4761 1340 2536 2480 25 1368 421 87 Spaces Moved 9411 | 19 230 2332 493 1449 1887 80 2161 671 89 Core 42 | . . . . . . . . . 42 Treads 2079 | 10 230 1839 . . . . . . . Legs 9 | 9 . . . . . . . . . Wheels 3840 | . . 493 493 1449 1405 . . . . Hover 3441 | . . . . . 482 80 2161 671 47 Flight . | . . . . . . . . . . Fastest Speed 28 | 120 160 160 165 100 28 28 28 36 50 Average Speed 114 | 141 160 174 226 172 81 28 34 54 70 Slowest Speed 356 | 160 160 295 295 190 356 28 38 108 200 Overloaded Moves . | . . . . . . . . . . Propulsion Burnouts . | . . . . . . . . . . Robots Hopped . | . . . . . . . . . . Potential Cave-ins 5 | . . . . . . . 5 . . Cave-ins Triggered . | . . . . . . . . . . Exploration Rate (%) 60 | 3 50 92 82 86 60 72 58 86 17 Regions Visited 9 Branch Regions 5 Pre-discovered Areas 10 | . 2 . 4 2 1 . . 1 . Known Exits Taken 2 | . . . . . . . 1 1 . Unknown Exits Taken 5 | 1 1 1 1 1 . . . . . Scrap Searched 16 | . . 12 . 2 . . . 1 1 Spaces Dug 91 | . . 21 3 . 17 . 45 5 . Terrain Destroyed 432 | 2 4 84 13 . 77 . 205 47 . Melee 44 | . . 20 3 . 15 . 1 5 . Projectile 115 | . . 7 10 . 6 . 90 2 . AOE 273 | 2 4 57 . . 56 . 114 40 . Terrain Rammed . | . . . . . . . . . . Walls Destroyed . | . . . . . . . . . . Machines Disabled . | . . . . . . . . . . Actions | -11 -10 -10 -9 -9 -6 -6 -6 -6 -6 --------- Run | Yrd Mat Sub Rec Scr Fac Was Fac Low Low Total 11538 | 27 316 2880 668 1499 2570 81 2664 718 115 Wait 1197 | . 27 338 96 1 357 2 337 19 20 Move 9403 | 18 229 2331 492 1448 1887 79 2160 670 89 Hop . | . . . . . . . . . . Pick Up 115 | . 6 25 12 21 39 . 8 3 1 Fast Attach 28 | 1 . 6 2 1 9 . 8 1 . Attach 49 | 2 . 1 3 1 26 . 12 4 . Detach 17 | . . 2 1 . 1 . 9 3 1 Swap 72 | . 3 17 3 1 39 . 9 . . Drop 108 | 2 . 23 3 26 40 . 2 8 4 Fire 368 | 4 50 53 17 . 131 . 109 4 . Melee 116 | . . 63 12 . 30 . 5 6 . Ram 2 | . . . . . . . 2 . . Kick . | . . . . . . . . . . Crush 2 | . 1 1 . . . . . . . Escape Stasis 8 | . . . . . 8 . . . . Rewire 27 | . . . 27 . . . . . . Trap . | . . . . . . . . . . Miscellaneous 26 | . . 20 . . 3 . 3 . . Route ------- -11/Scrapyard -10/Materials (discovered 3 exits: [*Mat] / [*Min] / *Sub) -10/Subcaves (discovered 3 exits: [*Mat x2] / *Rec) -9/Recycling -9/Scraptown (discovered 2 exits: *Fac x2) -6/Factory (discovered 2 exits: *Fac x2) -6/Waste -6/Factory (discovered 4 exits: *Fac x2 / *Low x2) -6/Lower Caves -6/Lower Caves (discovered 1 exit: *Fac) History --------- Turn | Location | Event 1 | -11/Scrapyard | Discovered new exit (range 2) 43 | -11/Scrapyard | Entered Materials 100 | -10/Materials | Central database locked down 240 | -10/Materials | Discovered new exit (range 9) 305 | -10/Materials | Build established: Mutant 468 | -10/Materials | Discovered new exit (range 8) 572 | -10/Materials | Discovered new exit (range 9) 585 | -10/Materials | Entered Subcaves 586 | -10/Subcaves | Approached by a straggling Scientist 624 | -10/Subcaves | Shifting Twisted Machinery released Sub. Beam Cannon 632 | -10/Subcaves | Shifting Twisted Machinery released Mak. Leg 1190 | -10/Subcaves | Discovered new exit (range 5) 1296 | -10/Subcaves | A swath of the cavern ceiling suddenly collapsed 1711 | -10/Subcaves | A Subdweller sparked back to life 1711 | -10/Subcaves | A Subdweller sparked back to life 1711 | -10/Subcaves | A Subdweller sparked back to life 1738 | -10/Subcaves | Found Prototype Power Core 1822 | -10/Subcaves | Shifting Twisted Machinery released Humpback 1839 | -10/Subcaves | Shifting Twisted Machinery released Battle Rifle 2121 | -10/Subcaves | Shifting Twisted Machinery released Sub. Laser 2157 | -10/Subcaves | Shifting Twisted Machinery released Piercing Trap 2346 | -10/Subcaves | A swath of the cavern ceiling suddenly collapsed 2698 | -10/Subcaves | Core integrity fell below 50% 2701 | -10/Subcaves | Discovered new exit (range 14) 2719 | -10/Subcaves | Learned Materials garrison access intel 2961 | -10/Subcaves | Discovered new exit (range 15) 3753 | -10/Subcaves | Build established: Subdweller-Mutant 3875 | -10/Subcaves | Visited 4L-MR0's lab 3880 | -10/Subcaves | Identified Meta Core 4502 | -10/Subcaves | Build established: Hauler-Mutant 5062 | -10/Subcaves | Found Maxwheels 5346 | -10/Subcaves | Entered Recycling 6377 | -9/Recycling | Core integrity fell below 20% 6400 | -9/Recycling | Lost 3 parts (2n1w) 6554 | -9/Recycling | Scanned before Scraplab entrance 6583 | -9/Recycling | Entered Scraplab 6598 | -9/Recycling | Discovered new exit (range 2) 6686 | -9/Recycling | Entered Scraptown 6970 | -9/Scraptown | Discovered new exit (range 11) 7057 | -9/Scraptown | Scanned Subdweller tech in exchange for log data 7061 | -9/Scraptown | Learned Factory terminal intel 7063 | -9/Scraptown | Learned location of Quarantine (-2) 7065 | -9/Scraptown | Learned location of Zion (-7) 7070 | -9/Scraptown | Learned Factory stockpile data 7203 | -9/Scraptown | Visited Cyclists 7219 | -9/Scraptown | Visited Red Mages 7304 | -9/Scraptown | Visited Fellowship of the Rings 7363 | -9/Scraptown | Visited CPS Storage 7380 | -9/Scraptown | Heard Great Nut preacher, LISTEN AND RECITE! 7661 | -9/Scraptown | Visited UFD Registry 7661 | -9/Scraptown | Registered with UFD as "Shortstep" 7688 | -9/Scraptown | Visited The Evicted 7699 | -9/Scraptown | Visited Comm Corps 7811 | -9/Scraptown | Guru changed UFD alias to "Scrapranger" 7923 | -9/Scraptown | Entered Cyclist Reading Room 8131 | -9/Scraptown | Visited Assassins FH 8286 | -9/Scraptown | Delivered Scrap Shield to a Scientist 8372 | -9/Scraptown | Visited Supply Room 8404 | -9/Scraptown | Visited Derelict Rescue Squad 8429 | -9/Scraptown | Visited Supply Room 8480 | -9/Scraptown | Visited Chapter 10 8533 | -9/Scraptown | Visited Junk Repository 8822 | -9/Scraptown | System corruption cleaned by C-Scrubber 8916 | -9/Scraptown | Build established: Mutant 9144 | -9/Scraptown | Met Optimus 9144 | -9/Scraptown | Accepted into 0bPrime 9219 | -9/Scraptown | Discovered new exit (range 3) 9222 | -9/Scraptown | Entered Factory 9222 | -6/Factory | Evolved 8 slots: Propulsion x2, Utility x6 9224 | -6/Factory | Loaded intel: 26 terminal locations 9225 | -6/Factory | Attached Maxwheels, gained temporary slots: Weapon x2 9478 | -6/Factory | Fabricated O-24 Administrator? 9660 | -6/Factory | Fabricated Imp. Hacking Suite (x1) 9688 | -6/Factory | Fabricated Imp. Hacking Suite (x1) 9819 | -6/Factory | Build established: Hacker-Tank 9898 | -6/Factory | Loaded intel: 8 recycling unit locations 9926 | -6/Factory | Learned location of Protoforge (-2) 10749 | -6/Factory | Discovered new exit (range 16) 10772 | -6/Factory | Attached Meta Core, gained temporary slots: Propulsion, Utility, Weapon 10915 | -6/Factory | Spotted B-75 Beast 11093 | -6/Factory | Discovered new exit (range 7) 11247 | -6/Factory | Fabricated Imp. Hacking Suite (x1) 11310 | -6/Factory | Core integrity fell below 50% 11366 | -6/Factory | Lost 9 parts (3n2u4w) 11453 | -6/Factory | Fabricated Linear Gravjet (x2) 11545 | -6/Factory | Fabricated Linear Gravjet (x2) 11619 | -6/Factory | Central database locked down 11702 | -6/Factory | Sucked down chute 11702 | -6/Factory | Entered Waste 11708 | -6/Waste | Spotted C-40 Crusher 11709 | -6/Waste | Spotted C-40 Crusher 11709 | -6/Waste | Spotted C-40 Crusher 11710 | -6/Waste | Spotted C-40 Crusher 11712 | -6/Waste | Spotted C-40 Crusher 11717 | -6/Waste | EMP discharged 11717 | -6/Waste | Spotted C-40 Crusher 11721 | -6/Waste | Discovered new exit (range 14) 11726 | -6/Waste | Identified exit to Factory 11727 | -6/Waste | Entered Factory 11775 | -6/Factory | Spotted B-75 Beast 11919 | -6/Factory | Build established: Wizard-Sprinter 11990 | -6/Factory | Loaded intel: 8 recycling unit locations 12093 | -6/Factory | Core integrity fell below 20% 12151 | -6/Factory | Discovered new exit (range 10) 12154 | -6/Factory | Identified exit to Factory 12255 | -6/Factory | Central database locked down 12255 | -6/Factory | Imp. Hacking Suite fried by hacking feedback 12439 | -6/Factory | Discovered exit to Factory (range 19) 12481 | -6/Factory | Fabricated Tri-rail Accelerator (x1) 12486 | -6/Factory | Mak. Hacking Suite fried by hacking feedback 12705 | -6/Factory | Build established: Hacker-Scout 12749 | -6/Factory | Garrison activated, responded to threat 12793 | -6/Factory | Found Launcher Loader 12821 | -6/Factory | Identified exit to Lower Caves 12821 | -6/Factory | Imp. Hacking Suite fried by hacking feedback 13095 | -6/Factory | Entered Lower Caves 13095 | -6/Lower Caves | Spotted B-75 Beast 13097 | -6/Lower Caves | UFD Scientist delivered a prototype 13133 | -6/Lower Caves | Found Prototype Protection 13133 | -6/Lower Caves | Identified Enh. Scrap Shield 13146 | -6/Lower Caves | Identified exit to Lower Caves 13147 | -6/Lower Caves | Learned Factory garrison access intel 13191 | -6/Lower Caves | Build established: Scout 13200 | -6/Lower Caves | Lost 3 parts (3n) 13516 | -6/Lower Caves | Entered another Lower Caves area 13524 | -6/Lower Caves | Discovered exit to Factory (range 14) 13603 | -6/Lower Caves | Destroyed by G-67 Veteran with Field Laser Last Messages --------------- 13511_ Acquired 1 matter. LOCATION=LOWER CAVES GOAL=ESCAPE 13517_ Gravmag System destroyed. 13517_ Dropped Med. Storage Unit. 13524_ EXIT=FOUND: FACTORY 13525_ Critical hit (Burn: +50). 13528_ Dropped Plasma Rifle. 13548_ TDHY/> 9M6 YRDWQAQR<%MW| 13555_ Searching scrap... 13555_ Found Transmission Jammer. 13555_ Found Particle Charger. 13555_ Found 69 Matter. 13556_ Acquired 38 matter. 13557_ Imp. Gravmag System+ destroyed. 13561_ CT-3DG(S) suffers critical hit (Burn). 13576_ Discarded Meta Core. 13579_ Dropped Weapon Mount. 13579_ Acquired Multitool. 13595_ Adv. Sensor Array destroyed. Map ----- +----------------------------------------------------+ | ??????????????????????????????????????# #??????? | | ?????????????????????????????????????## ######?? | | ????????????????????????????????????## ## ##? | | ????????????????????????????????????# ## | | ??????????????????????????????????### # | | ?????????????????????????????????## | | ?????????????????????????????????# ## | | ?????????????????????????????????# | | ?????????????????????????????????### | | ???????????????????????????????????# ### ##++ | | ???????????????????????????????????## #"" "" | | ????????????????????????????????????# # | | ????????????????????????????????????## | | ?????????????????????????????????????## [ | | ??????????????????????????????????????# ####++ | | ??????????????????????????????????????# #" | | ??????????????????????????????????????# [ " | | ??????????????????????????????????????# " " | | ???????????????????????????????#####??#!%# * | | ???????????????????????????????# #??# !#### """ | | ???????????????????????????????# #??# #" " """ | | ???????????????????????????????# #### #"" """ | | ????????????????????????????????# % #" T | | ??????????????????????????####?## #"" | | ??????????????????????##### ### #### ##### ### | | ??????????????????????# @ #### ! | | ??????????????????????# ### g %! | | ??????????????????????????## ## g#= ####### | | ???????????????????????????## ######## # ### ! | | ????????????????????????????###??????# # !! | | ?????????????????????????????????????# # !## | | ?????????????????????????????????????# ##### ## | | ?????????????????????????????????????# # | | ?????????????????????????????????????###### ## | | ??????????????????????????????????????????## ####? | | ???????????????????????????????????????????###???? | | ?????????????????????????????????????????????????? | | ?????????????????????????????????????????????????? | | ?????????????????????????????????????????????????? | | ?????????????????????????????????????????????????? | | ?????????????????????????????????????????????????? | | ?????????????????????????????????????????????????? | | ?????????????????????????????????????????????????? | | ?????????????????????????????????????????????????? | | ?????????????????????????????????????????????????? | | ?????????????????????????????????????????????????? | | ?????????????????????????????????????????????????? | | ?????????????????????????????????????????????????? | | ?????????????????????????????????????????????????? | | ?????????????????????????????????????????????????? | +----------------------------------------------------+ Best States ------------- Heat Dissipation 56 Energy Generation 18 Energy Capacity 290 Matter Stores 300 Matter Capacity 300 Sight Range 20 Robot Scan Range 16 Terrain Scan Range 20 Terrain Scan Density 10 Jamming Range 12 Armor Coverage 800 Utility Shielding 90 Evasion (%) 59 Targeting Accuracy 20 Core Analysis 6 Recoil Reduction 2 Offensive Hacking 67 Defensive Hacking 35 Authchip Count 1 Item Schematics ----------------- Imp. Hacking Suite | -6/Factory | Hacked Adv. System Restoration Module | -6/Factory | Hacked Linear Gravjet | -6/Factory | Hacked Adv. Sensor Array | -6/Factory | Scanalyzed Adv. Targeting Computer | -6/Factory | Scanalyzed Tri-rail Accelerator | -6/Factory | Hacked Lrn. Sensor Array | -6/Factory | Hacked Smartbomb Launcher | -6/Factory | Hacked Robot Schematics ------------------ None Fabricated ------------ O-24 Administrator | x1 | -6/Factory | Preloaded Imp. Hacking Suite | x1 | -6/Factory | Authchip Imp. Hacking Suite | x1 | -6/Factory Imp. Hacking Suite | x1 | -6/Factory Linear Gravjet | x2 | -6/Factory Linear Gravjet | x2 | -6/Factory Tri-rail Accelerator | x1 | -6/Factory | Authchip Repaired ---------- Nothing Studied --------- Imp. Gravmag System | -6/Factory | Hacked Alien Tech Used ----------------- None Achievements -------------- None Challenges ------------ None Game ------ Seed RecyclingAnalysisShooter Manual? 0 Play Time 01:37:39 Cumulative 694.2 hours Start 2026.09.21 @ 00:34:21 End 2026.09.21 @ 04:01:13 Sessions 5 Manual Loads 0 Difficulty Rogue Special Mode None Game No. 629 Rogue 593 Adventurer 36 Explorer 0 Win Type - Total 9 Types 2/2/0/1/1/0/0/2/1/0 Lore% 86 Gallery% 76 Achievement% 71 Wizard Run 0 Options --------- Layout 2 ASCII 0 Keyboard 0 Movement Numpad Keybinds 0 Fullscreen 1 Font 48/Smallcaps Map View 50x44 Zoom Use 0% Tactical HUD 1 Map Filters NONE Filters NONE Steam 1 RUN: 0d5db488-fe0a-4025-99e2-aead789e74c0